fUSD/lending_fUSD_20250629
["ID","MTS","AMOUNT","RATE_DAILY","PERIOD"]
[368494946,1751190782490,-490.0,0.00031506,3]
[368494947,1751190782499,-1101.22,0.00031506,3]
[368494948,1751190782510,-555.36,0.00031506,3]
[368494949,1751190782522,-490.0,0.00031506,3]
[368494950,1751190782532,-1690.83,0.00031506,3]
[368494951,1751190782541,-494.25,0.00031506,3]
[368494952,1751190782551,-608.46,0.00031506,3]
[368494953,1751190782561,-916.39,0.00031506,3]
[368494954,1751190782573,-573.71,0.00031506,3]
[368494955,1751190782582,-1033.94,0.00031506,3]
[368494956,1751190782591,-1394.52,0.00031506,3]
[368494957,1751190782600,-841.15,0.00031506,3]
[368494958,1751190782610,-18048.03,0.00031506,3]
[368494959,1751190782619,-698.3,0.00031506,3]
[368494960,1751190782629,-814.68,0.00031506,3]
[368494961,1751190782639,-994.63,0.00031506,3]
[368494962,1751190782648,-860.32,0.00031506,3]
[368494963,1751190782659,-490.0,0.00031506,3]
[368494964,1751190782668,-817.07,0.00031506,3]
[368494965,1751190782677,-1083.78,0.00031506,3]
[368494966,1751190782687,-895.73,0.00031506,3]
[368494967,1751190782696,-1619.71,0.00031506,3]
[368494968,1751190782705,-2039.79,0.00031506,3]
[368494969,1751190782716,-490.0,0.00031506,3]
[368494970,1751190782726,-388.3380272,0.00031506,3]
[368494971,1751190782735,-627.15,0.00031506,3]
[368494972,1751190782745,-1338.17,0.00031506,3]
[368494973,1751190782755,-522.56,0.00031506,3]
[368494974,1751190782764,-5045.19,0.00031506,3]
[368494975,1751190782773,-732.19,0.00031506,3]
[368494976,1751190782783,-490.0,0.00031506,3]
[368494977,1751190782792,-2735.95,0.00031506,3]
[368494978,1751190782801,-1159.62,0.00031506,3]
[368494979,1751190782811,-557.27,0.00031506,3]
[368494980,1751190782820,-1735.18,0.00031506,3]
[368494981,1751190782830,-2798.62,0.00031506,3]
[368494982,1751190782839,-795.99,0.00031506,3]
[368494984,1751190782848,-274.13590383,0.00031506,3]
[368494985,1751190782857,-2632.4,0.00031506,3]
[368494987,1751190782867,-890.5,0.00031506,3]
[368494988,1751190782875,-2676.96,0.00031506,3]
[368494989,1751190782884,-815.43,0.00031506,3]
[368494991,1751190782893,-490.0,0.00031506,3]
[368494992,1751190782903,-2287.33,0.00031506,3]
[368494994,1751190782913,-7199.68,0.00031506,3]
[368494995,1751190782922,-1083.86,0.00031506,3]
[368494997,1751190782932,-1198.65,0.00031506,3]
[368494998,1751190782941,-564.45,0.00031506,3]
[368494999,1751190782951,-490.0,0.00031506,3]
[368495001,1751190782960,-4926.93,0.00031506,3]
[368495002,1751190782970,-2111.85,0.00031506,3]
[368495004,1751190782979,-2504.77,0.00031506,3]
[368495005,1751190782988,-670.5,0.00031506,3]
[368495006,1751190782998,-9168.68,0.00031506,3]
[368495008,1751190783009,-1466.04,0.00031506,3]
[368495009,1751190783019,-148479.19,0.00031506,3]
[368495011,1751190783029,-995.99,0.00031506,3]
[368495012,1751190783039,-884.61,0.00031506,3]
[368495013,1751190783049,-1110.23,0.00031506,3]
[368495015,1751190783059,-3927.92,0.00031506,3]
[368495016,1751190783070,-1262.58,0.00031506,3]
[368495017,1751190783079,-490.0,0.00031506,3]
[368495018,1751190783089,-1550.57,0.00031506,3]
[368495019,1751190783099,-574.84846178,0.00031506,3]
[368495020,1751190783108,-799.02,0.00031506,3]
[368495021,1751190783118,-4423.72,0.00031506,3]
[368495022,1751190783128,-1420.75,0.00031506,3]
[368495023,1751190783138,-153.25598759,0.00031506,3]
[368495024,1751190783148,-2359.81,0.00031506,3]
[368495025,1751190783158,-612.29,0.00031506,3]
[368495026,1751190783168,-2220.09,0.00031506,3]
[368495027,1751190783178,-490.0,0.00031506,3]
[368495028,1751190783188,-1116.8,0.00031506,3]
[368495029,1751190783197,-490.0,0.00031506,3]
[368495030,1751190783207,-850.38,0.00031506,3]
[368495031,1751190783216,-1906.36,0.00031506,3]
[368495032,1751190783227,-2198.76,0.00031506,3]
[368495033,1751190783237,-1730.15,0.00031506,3]
[368495034,1751190783246,-1635.41,0.00031506,3]
[368495035,1751190783257,-1477.82,0.00031506,3]
[368495036,1751190783268,-495.37,0.00031506,3]
[368495037,1751190783279,-3000.74,0.00031506,3]
[368495038,1751190783289,-924.29,0.00031506,3]
[368495039,1751190783299,-1537.71,0.00031506,3]
[368495040,1751190783309,-818.08,0.00031506,3]
[368495041,1751190783319,-1565.54,0.00031506,3]
[368495042,1751190783329,-1894.35,0.00031506,3]
[368495043,1751190783339,-707.33,0.00031506,3]
[368495044,1751190783350,-854.62,0.00031506,3]
[368495045,1751190783360,-1990.15,0.00031506,3]
[368495046,1751190783371,-2120.63,0.00031506,3]
[368495047,1751190783382,-490.0,0.00031506,3]
[368495048,1751190783394,-490.0,0.00031506,3]
[368495049,1751190783404,-332.42515066,0.00031506,3]
[368495050,1751190783524,-501.24,0.00031506,3]
[368495051,1751190783535,-1303.39,0.00031506,3]
[368495052,1751190783545,-567.15663839,0.00031506,3]
[368495053,1751190783555,-2057.83,0.00031506,3]
[368495054,1751190783565,-1066.81,0.00031506,3]
[368495055,1751190783575,-1078.53,0.00031506,3]
[368495056,1751190783585,-2549.31,0.00031506,3]
[368495057,1751190783595,-829.05,0.00031506,3]
[368495058,1751190783604,-1514.01,0.00031506,3]
[368495059,1751190783613,-709.69,0.00031506,3]
[368495060,1751190783623,-490.0,0.00031506,3]
[368495061,1751190783633,-1413.24,0.00031506,3]
[368495062,1751190783643,-499.7,0.00031506,3]
[368495063,1751190783653,-490.0,0.00031506,3]
[368495064,1751190783662,-7138.85,0.00031506,3]
[368495065,1751190783672,-1126.76,0.00031506,3]
[368495066,1751190783681,-1903.95,0.00031506,3]
[368495067,1751190783691,-490.0,0.00031506,3]
[368495068,1751190783700,-1687.9,0.00031506,3]
[368495069,1751190783709,-605.34,0.00031506,3]
[368495070,1751190783719,-624.57,0.00031506,3]
[368495071,1751190783728,-1199.32,0.00031506,3]
[368495072,1751190783737,-1080.18,0.00031506,3]
[368495073,1751190783746,-490.0,0.00031506,3]
[368495074,1751190783756,-1902.03,0.00031506,3]
[368495075,1751190783766,-685.5,0.00031506,3]
[368495076,1751190783776,-985.04,0.00031506,3]
[368495077,1751190783785,-809.87,0.00031506,3]
[368495078,1751190783794,-2277.33,0.00031506,3]
[368495079,1751190783804,-3579.22,0.00031506,3]
[368495080,1751190783814,-1202.94,0.00031506,3]
[368495081,1751190783823,-490.0,0.00031506,3]
[368495082,1751190783832,-1406.03,0.00031506,3]
[368495083,1751190783841,-1369.16,0.00031506,3]
[368495084,1751190783850,-2322.41,0.00031506,3]
[368495085,1751190783859,-11425.24,0.00031506,3]
[368495086,1751190783868,-936.2,0.00031506,3]
[368495087,1751190783877,-892.36,0.00031506,3]
[368495088,1751190783886,-7389.77,0.00031506,3]
[368495089,1751190783895,-2363.6,0.00031506,3]
[368495090,1751190783905,-1344.12,0.00031506,3]
[368495091,1751190783914,-490.0,0.00031506,3]
[368495092,1751190783923,-490.0,0.00031506,3]
[368495093,1751190783933,-1010.37,0.00031506,3]
[368495094,1751190783942,-3943.02,0.00031506,3]
[368495095,1751190783951,-719.55,0.00031506,3]
[368495096,1751190783960,-962.36,0.00031506,3]
[368495097,1751190783970,-2127.37,0.00031506,3]
[368495098,1751190783980,-3378.38,0.00031506,3]
[368495099,1751190783989,-1167.04,0.00031506,3]
[368495100,1751190783998,-2325.84,0.00031506,3]
[368495101,1751190784008,-1319.73,0.00031506,3]
[368495102,1751190784018,-509.95,0.00031506,3]
[368495103,1751190784027,-613.68,0.00031506,3]
[368495104,1751190784036,-2715.66,0.00031506,3]
[368495105,1751190784045,-1043.95,0.00031506,3]
[368495106,1751190784054,-1294.86,0.00031506,3]
[368495107,1751190784063,-1355.41,0.00031506,3]
[368495108,1751190784073,-2207.5,0.00031506,3]
[368495109,1751190784083,-545.36,0.00031506,3]
[368495110,1751190784093,-1588.45,0.00031506,3]
[368495111,1751190784102,-4741.41,0.00031506,3]
[368495112,1751190784112,-490.0,0.00031506,3]
[368495113,1751190784122,-490.0,0.00031506,3]
[368495114,1751190784132,-826.61,0.00031506,3]
[368495115,1751190784142,-3228.0,0.00031506,3]
[368495116,1751190784152,-494.83342293,0.00031506,3]
[368495117,1751190784162,-886.06,0.00031506,3]
[368495118,1751190784171,-9205.97,0.00031506,3]
[368495119,1751190784180,-1170.72,0.00031506,3]
[368495120,1751190784190,-490.0,0.00031506,3]
[368495121,1751190784200,-1424.96,0.00031506,3]
[368495122,1751190784209,-2306.21,0.00031506,3]
[368495123,1751190784219,-3412.3,0.00031506,3]
[368495124,1751190784228,-728.26,0.00031506,3]
[368495125,1751190784237,-1625.19,0.00031506,3]
[368495126,1751190784246,-490.0,0.00031506,3]
[368495127,1751190784255,-1125.2,0.00031506,3]
[368495128,1751190784265,-736.63,0.00031506,3]
[368495129,1751190784275,-1386.0,0.00031506,3]
[368495130,1751190784284,-1073.8,0.00031506,3]
[368495131,1751190784293,-1530.28,0.00031506,3]
[368495132,1751190784303,-2006.57,0.00031506,3]
[368495133,1751190784313,-2091.51,0.00031506,3]
[368495134,1751190784322,-2126.77,0.00031506,3]
[368495135,1751190784331,-1779.52,0.00031506,3]
[368495136,1751190784340,-490.0,0.00031506,3]
[368495137,1751190784350,-1673.45,0.00031506,3]
[368495138,1751190784359,-1303.39,0.00031506,3]
[368495139,1751190784368,-4507.51,0.00031506,3]
[368495140,1751190784377,-776.8,0.00031506,3]
[368495141,1751190784385,-490.0,0.00031506,3]
[368495142,1751190784395,-2000.1,0.00031506,3]
[368495143,1751190784404,-490.0,0.00031506,3]
[368495144,1751190784414,-3480.9,0.00031506,3]
[368495145,1751190784423,-1935.08,0.00031506,3]
[368495146,1751190784432,-1632.66,0.00031506,3]
[368495147,1751190784441,-1569.37,0.00031506,3]
[368495148,1751190784450,-2530.56,0.00031506,3]
[368495149,1751190784460,-2452.49,0.00031506,3]
[368495150,1751190784470,-1489.85,0.00031506,3]
[368495151,1751190784479,-490.0,0.00031506,3]
[368495152,1751190784491,-1193.32,0.00031506,3]
[368495153,1751190784500,-2419.87,0.00031506,3]
[368495154,1751190784510,-1993.35,0.00031506,3]
[368495155,1751190784522,-588.25,0.00031506,3]
[368495156,1751190784531,-3522.67,0.00031506,3]
[368495157,1751190784541,-1690.76,0.00031506,3]
[368495158,1751190784550,-2018.73,0.00031506,3]
[368495159,1751190784560,-2069.08,0.00031506,3]
[368495160,1751190784570,-431.92984185,0.00031506,3]
[368495161,1751190784579,-2243.02,0.00031506,3]
[368495162,1751190784588,-1621.16,0.00031506,3]
[368495163,1751190784597,-2803.72,0.00031506,3]
[368495164,1751190784606,-490.0,0.00031506,3]
[368495165,1751190784615,-1156.58,0.00031506,3]
[368495166,1751190784625,-697.23,0.00031506,3]
[368495167,1751190784634,-490.0,0.00031506,3]
[368495168,1751190784643,-2344.83,0.00031506,3]
[368495169,1751190784654,-2317.49,0.00031506,3]
[368495170,1751190784664,-519.9125145,0.00031506,3]
[368495171,1751190784673,-1455.99,0.00031506,3]
[368495172,1751190784682,-896.46,0.00031506,3]
[368495173,1751190784692,-1697.89,0.00031506,3]
[368495174,1751190784701,-2847.6,0.00031506,3]
[368495175,1751190784711,-1196.0,0.00031506,3]
[368495176,1751190784720,-490.0,0.00031506,3]
[368495177,1751190784729,-4069.2,0.00031506,3]
[368495178,1751190784738,-1620.63,0.00031506,3]
[368495179,1751190784747,-24643.72,0.00031506,3]
[368495180,1751190784757,-498.07,0.00031506,3]
[368495181,1751190784767,-3762.98,0.00031506,3]
[368495182,1751190784776,-499.82,0.00031506,3]
[368495183,1751190784785,-1069.72,0.00031506,3]
[368495184,1751190784795,-725.1,0.00031506,3]
[368495185,1751190784804,-4782.64,0.00031506,3]
[368495186,1751190784813,-1100.83,0.00031506,3]
[368495187,1751190784823,-1824.13,0.00031506,3]
[368495188,1751190784832,-2504.1,0.00031506,3]
[368495189,1751190784841,-1607.63,0.00031506,3]
[368495190,1751190784850,-1132.25,0.00031506,3]
[368495191,1751190784860,-11678.75,0.00031506,3]
[368495192,1751190784870,-3607.16,0.00031506,3]
[368495193,1751190784879,-674.39,0.00031506,3]
[368495194,1751190784888,-2388.21,0.00031506,3]
[368495195,1751190784898,-576.21365583,0.00031506,3]
[368495196,1751190784907,-632.01,0.00031506,3]
[368495197,1751190784917,-3749.55,0.00031506,3]
[368495198,1751190784927,-2478.96,0.00031506,3]
[368495199,1751190784936,-536.71,0.00031506,3]
[368495200,1751190784946,-1798.53,0.00031506,3]
[368495201,1751190784956,-490.0,0.00031506,3]
[368495202,1751190784965,-3221.5,0.00031506,3]
[368495203,1751190784974,-1629.68,0.00031506,3]
[368495204,1751190784984,-1535.71,0.00031506,3]
[368495205,1751190784993,-548.24,0.00031506,3]
[368495206,1751190785003,-2263.99,0.00031506,3]
[368495207,1751190785012,-1677.32,0.00031506,3]
[368495208,1751190785023,-6718.76,0.00031506,3]
[368495209,1751190785032,-1322.58,0.00031506,3]
[368495210,1751190785041,-18559.3,0.00031506,3]
[368495211,1751190785051,-857.93,0.00031506,3]
[368495212,1751190785060,-553.18,0.00031506,3]
[368495213,1751190785069,-490.0,0.00031506,3]
[368495214,1751190785079,-2586.37,0.00031506,3]
[368495215,1751190785087,-987.81,0.00031506,3]
[368495216,1751190785096,-1263.2,0.00031506,3]
[368495217,1751190785105,-698.11,0.00031506,3]
[368495218,1751190785115,-3862.63,0.00031506,3]
[368495219,1751190785124,-826.74,0.00031506,3]
[368495220,1751190785133,-1943.16,0.00031506,3]
[368495221,1751190785142,-4122.27,0.00031506,3]
[368495222,1751190785151,-490.0,0.00031506,3]
[368495223,1751190785160,-490.0,0.00031506,3]
[368495224,1751190785170,-490.0,0.00031506,3]
[368495225,1751190785179,-490.0,0.00031506,3]
[368495226,1751190785188,-490.0,0.00031506,3]
[368495227,1751190785200,-1385.92,0.00031506,3]
[368495228,1751190785212,-1552.69,0.00031506,3]
[368495229,1751190785223,-5320.1,0.00031506,3]
[368495230,1751190785232,-490.0,0.00031506,3]
[368495231,1751190785242,-2723.89,0.00031506,3]
[368495232,1751190785251,-620.43,0.00031506,3]
[368495233,1751190785260,-4529.09,0.00031506,3]
[368495234,1751190785271,-1307.14,0.00031506,3]
[368495235,1751190785282,-2347.57,0.00031506,3]
[368495236,1751190785291,-2896.25,0.00031506,3]
[368495237,1751190785301,-1874.39,0.00031506,3]
[368495238,1751190785310,-5682.59,0.00031506,3]
[368495239,1751190785320,-2024.74,0.00031506,3]
[368495240,1751190785329,-919.31,0.00031506,3]
[368495241,1751190785339,-273.9338655,0.00031506,3]
[368495242,1751190785348,-2104.31,0.00031506,3]
[368495243,1751190785357,-1968.64,0.00031506,3]
[368495244,1751190785367,-626.13,0.00031506,3]
[368495245,1751190785377,-2133.2,0.00031506,3]
[368495246,1751190785387,-1770.11,0.00031506,3]
[368495247,1751190785396,-1764.06,0.00031506,3]
[368495248,1751190785406,-700.52,0.00031506,3]
[368495249,1751190785416,-1730.13,0.00031506,3]
[368495250,1751190785426,-490.0,0.00031506,3]
[368495251,1751190785435,-2165.68,0.00031506,3]
[368495252,1751190785445,-513.72,0.00031506,3]
[368495253,1751190785454,-883.4,0.00031506,3]
[368495254,1751190785464,-1926.75,0.00031506,3]
[368495255,1751190785477,-5921.12,0.00031506,3]
[368495256,1751190785486,-490.0,0.00031506,3]
[368495257,1751190785495,-2141.99,0.00031506,3]
[368495258,1751190785504,-2043.04,0.00031506,3]
[368495259,1751190785513,-490.0,0.00031506,3]
[368495260,1751190785524,-631.01,0.00031506,3]
[368495261,1751190785533,-855.58,0.00031506,3]
[368495262,1751190785542,-696.89,0.00031506,3]
[368495263,1751190785552,-1625.9,0.00031506,3]
[368495264,1751190785561,-3241.41,0.00031506,3]
[368495265,1751190785570,-2087.25,0.00031506,3]
[368495266,1751190785580,-1891.34,0.00031506,3]
[368495267,1751190785589,-3866.16,0.00031506,3]
[368495268,1751190785599,-4543.11,0.00031506,3]
[368495269,1751190785608,-569.82,0.00031506,3]
[368495270,1751190785617,-1931.12,0.00031506,3]
[368495271,1751190785627,-490.0,0.00031506,3]
[368495272,1751190785637,-1948.57,0.00031506,3]
[368495273,1751190785647,-1323.16,0.00031506,3]
[368495274,1751190785656,-971.22,0.00031506,3]
[368495275,1751190785665,-6890.33,0.00031506,3]
[368495276,1751190785675,-1740.09,0.00031506,3]
[368495277,1751190785684,-490.0,0.00031506,3]
[368495278,1751190785694,-1509.17,0.00031506,3]
[368495279,1751190785706,-961.28,0.00031506,3]
[368495280,1751190785715,-1923.32,0.00031506,3]
[368495281,1751190785724,-802.0,0.00031507,3]
[368495282,1751190785734,-615.78962864,0.00031507,3]
[368495283,1751190785744,-618.59849431,0.00031507,3]
[368495284,1751190785753,-453.0,0.00031507,3]
[368495285,1751190785762,-2136.05,0.00031507,2]
[368495286,1751190785772,-150.0,0.00031519,7]
[368495287,1751190785782,-150.0,0.00031528,7]
[368495288,1751190785791,-150.0,0.00031532,7]
[368495289,1751190785801,-312.68872601,0.00031538,7]
[368495290,1751190785810,-294.80816015,0.00031538,7]
[368495291,1751190785819,-150.0,0.00031569,7]
[368495292,1751190785829,-150.0,0.00031587,7]
[368495293,1751190785839,-312.68872601,0.00031605,7]
[368495294,1751190785848,-294.80816015,0.00031605,7]
[368495295,1751190785857,-150.0,0.00031605,7]
[368495296,1751190785867,-150.0,0.00031612,7]
[368495297,1751190785875,-2043.46130184,0.00031659,25]
[368495298,1751190785885,-150.0,0.00031668,7]
[368495299,1751190785894,-312.68872601,0.00031671,7]
[368495300,1751190785903,-294.80816015,0.00031671,7]
[368495301,1751190785912,-150.0,0.00031685,7]
[368495302,1751190785921,-150.0,0.0003169,7]
[368495303,1751190785931,-150.0,0.00031692,7]
[368495304,1751190785940,-150.0,0.00031698,7]
[368495305,1751190785950,-312.68872601,0.00031737,7]
[368495306,1751190785959,-294.80816015,0.00031737,7]
[368495307,1751190785968,-150.0,0.00031772,7]
[368495308,1751190785978,-150.0,0.00031775,7]
[368495309,1751190785987,-1528.36,0.0003178,9]
[368495310,1751190785996,-600.46,0.0003178,3]
[368495311,1751190786005,-542.33,0.0003178,3]
[368495312,1751190786017,-847.37,0.0003178,3]
[368495313,1751190786027,-507.78514782,0.0003178,3]
[368495314,1751190786036,-490.0,0.0003178,3]
[368495315,1751190786046,-490.0,0.0003178,3]
[368495316,1751190786055,-490.0,0.0003178,3]
[368495317,1751190786066,-490.0,0.0003178,3]
[368495318,1751190786075,-948.9,0.0003178,3]
[368495319,1751190786084,-667.1,0.0003178,3]
[368495320,1751190786093,-513.09,0.0003178,3]
[368495321,1751190786102,-978.74,0.0003178,3]
[368495322,1751190786111,-642.29,0.0003178,3]
[368495323,1751190786121,-490.0,0.0003178,3]
[368495324,1751190786130,-490.0,0.0003178,3]
[368495325,1751190786139,-1186.44,0.0003178,3]
[368495326,1751190786148,-490.0,0.0003178,3]
[368495327,1751190786158,-490.0,0.0003178,3]
[368495328,1751190786166,-2554.302964,0.0003178,3]
[368495329,1751190786175,-490.0,0.0003178,3]
[368495330,1751190786184,-853.16,0.0003178,3]
[368495331,1751190786193,-2816.157543,0.0003178,3]
[368495332,1751190786203,-2200.380726,0.0003178,3]
[368495333,1751190786211,-500.85,0.0003178,3]
[368495334,1751190786220,-392.680419,0.0003178,3]
[368495335,1751190786229,-490.0,0.0003178,3]
[368495336,1751190786238,-887.72,0.0003178,3]
[368495337,1751190786247,-556.18,0.0003178,3]
[368495338,1751190786256,-153.102854,0.0003178,3]
[368495339,1751190786266,-656.47,0.0003178,3]
[368495340,1751190786275,-571.97,0.0003178,3]
[368495341,1751190786284,-490.0,0.0003178,3]
[368495342,1751190786293,-858.42,0.0003178,3]
[368495343,1751190786302,-490.0,0.0003178,3]
[368495344,1751190786312,-1167.71,0.0003178,3]
[368495345,1751190786321,-605.28474418,0.0003178,3]
[368495346,1751190786330,-648.74,0.0003178,3]
[368495347,1751190786339,-167.777922,0.0003178,3]
[368495348,1751190786348,-642.42,0.0003178,3]
[368495349,1751190786357,-523.68,0.0003178,3]
[368495350,1751190786366,-176.4364769,0.0003178,3]
[368495351,1751190786375,-490.0,0.0003178,3]
[368495352,1751190786385,-625.75,0.0003178,3]
[368495353,1751190786394,-363.20223903,0.0003178,3]
[368495354,1751190786403,-490.0,0.0003178,3]
[368495355,1751190786412,-567.33088141,0.0003178,3]
[368495356,1751190786421,-1529.36,0.0003178,3]
[368495357,1751190786430,-725.47,0.0003178,3]
[368495358,1751190786439,-167.777922,0.0003178,3]
[368495359,1751190786448,-178.561899,0.0003178,3]
[368495360,1751190786457,-490.0,0.0003178,3]
[368495361,1751190786466,-389.26276515,0.0003178,3]
[368495362,1751190786480,-1837.93,0.0003178,3]
[368495363,1751190786490,-961.81,0.0003178,3]
[368495364,1751190786498,-677.59,0.0003178,3]
[368495365,1751190786507,-490.0,0.0003178,3]
[368495366,1751190786517,-490.0,0.0003178,3]
[368495367,1751190786526,-490.0,0.0003178,3]
[368495368,1751190786536,-811.6,0.0003178,3]
[368495369,1751190786546,-490.0,0.0003178,3]
[368495370,1751190786556,-701.76,0.0003178,3]
[368495371,1751190786566,-801.55,0.0003178,3]
[368495372,1751190786575,-493.56,0.0003178,3]
[368495373,1751190786584,-490.0,0.0003178,3]
[368495374,1751190786593,-490.0,0.0003178,3]
[368495375,1751190786602,-590.68,0.0003178,3]
[368495376,1751190786611,-490.0,0.0003178,3]
[368495377,1751190786621,-490.0,0.0003178,3]
[368495378,1751190786631,-740.41,0.0003178,3]
[368495379,1751190786642,-930.82,0.0003178,3]
[368495380,1751190786652,-1134.82,0.0003178,3]
[368495381,1751190786661,-629.08,0.0003178,3]
[368495382,1751190786670,-507.56,0.0003178,3]
[368495383,1751190786679,-1395.58,0.0003178,3]
[368495384,1751190786688,-508.09,0.0003178,3]
[368495385,1751190786698,-596.83,0.0003178,3]
[368495386,1751190786708,-516.57,0.0003178,3]
[368495387,1751190786717,-1527.96,0.0003178,3]
[368495388,1751190786727,-2015.14,0.0003178,3]
[368495389,1751190786736,-615.0,0.0003178,3]
[368495390,1751190786746,-490.0,0.0003178,3]
[368495391,1751190786756,-889.47,0.0003178,3]
[368495392,1751190786765,-2302.9,0.0003178,3]
[368495393,1751190786775,-945.27,0.0003178,3]
[368495394,1751190786784,-743.01,0.0003178,3]
[368495395,1751190786793,-643.27,0.0003178,3]
[368495396,1751190786803,-1940.61,0.0003178,3]
[368495397,1751190786812,-1952.95,0.0003178,3]
[368495398,1751190786822,-1201.96,0.0003178,3]
[368495399,1751190786832,-1310.06,0.0003178,3]
[368495400,1751190786842,-369.84,0.0003178,3]
[368495401,1751190786852,-1125.22,0.0003178,3]
[368495402,1751190786861,-1224.35,0.0003178,3]
[368495403,1751190786870,-490.0,0.0003178,3]
[368495404,1751190786880,-976.06,0.0003178,3]
[368495405,1751190786889,-749.58,0.0003178,3]
[368495406,1751190786898,-1824.88,0.0003178,3]
[368495407,1751190786907,-603.75,0.0003178,3]
[368495408,1751190786916,-957.88,0.0003178,3]
[368495409,1751190786925,-490.0,0.0003178,3]
[368495410,1751190786935,-490.0,0.0003178,3]
[368495411,1751190786945,-490.0,0.0003178,3]
[368495412,1751190786954,-538.77,0.0003178,3]
[368495413,1751190786964,-776.78,0.0003178,3]
[368495414,1751190786974,-960.82,0.0003178,3]
[368495415,1751190786984,-894.84,0.0003178,3]
[368495416,1751190786992,-490.0,0.0003178,3]
[368495417,1751190787002,-1904.77,0.0003178,3]
[368495418,1751190787011,-1462.39,0.0003178,3]
[368495419,1751190787021,-2300.89,0.0003178,3]
[368495420,1751190787031,-490.0,0.0003178,3]
[368495421,1751190787041,-650.78,0.0003178,3]
[368495422,1751190787051,-2228.41,0.0003178,3]
[368495423,1751190787060,-694.52,0.0003178,3]
[368495424,1751190787069,-490.0,0.0003178,3]
[368495425,1751190787079,-490.0,0.0003178,3]
[368495426,1751190787089,-1649.19,0.0003178,3]
[368495428,1751190787097,-2026.94,0.0003178,3]
[368495429,1751190787106,-490.0,0.0003178,3]
[368495430,1751190787116,-843.7,0.0003178,3]
[368495432,1751190787126,-490.0,0.0003178,3]
[368495433,1751190787136,-490.0,0.0003178,3]
[368495435,1751190787145,-490.0,0.0003178,3]
[368495436,1751190787154,-490.0,0.0003178,3]
[368495437,1751190787165,-571.61,0.0003178,3]
[368495438,1751190787174,-896.97,0.0003178,3]
[368495439,1751190787184,-594.67,0.0003178,3]
[368495440,1751190787193,-1556.08,0.0003178,3]
[368495441,1751190787203,-1147.84,0.0003178,3]
[368495442,1751190787212,-490.0,0.0003178,3]
[368495443,1751190787221,-1027.62,0.0003178,3]
[368495444,1751190787230,-707.16,0.0003178,3]
[368495445,1751190787239,-880.72,0.0003178,3]
[368495446,1751190787249,-792.35,0.0003178,3]
[368495447,1751190787258,-490.0,0.0003178,3]
[368495448,1751190787268,-490.0,0.0003178,3]
[368495449,1751190787278,-780.47,0.0003178,3]
[368495450,1751190787287,-560.33,0.0003178,3]
[368495451,1751190787297,-944.59,0.0003178,3]
[368495452,1751190787306,-1653.81,0.0003178,3]
[368495453,1751190787315,-525.19,0.0003178,3]
[368495454,1751190787325,-1620.77,0.0003178,3]
[368495455,1751190787334,-1900.77,0.0003178,3]
[368495456,1751190787344,-521.24,0.0003178,3]
[368495457,1751190787354,-1487.61,0.0003178,3]
[368495458,1751190787363,-1556.78,0.0003178,3]